Cogmind - Beta 13 @@@ ROGUE MODE // 2024.06.13 @ 14:49:02 Player: JackZewap Result: Destroyed by as-15374 with Assembled Heavy Rifle Performance ------------- Evolutions (1) 500 Regions Visited (4) 800 Robots Destroyed (82) 410 Value Destroyed (1750) 1750 Prototype IDs (3) 60 Alien Tech Used (0) 0 Bonus (21) 21 TOTAL SCORE: 3541 Bonus ------- High Alert Combat Kills 21 Cogmind --------- Core Integrity 0/400 Matter 31/300 Energy 100/100 System Corruption 1% Temperature Cool (0) Movement Core (100) Ox1 Location -9/Mines Parts ------- > --- POWER (1) -------- (None) > --- PROPULSION (3) --- (None) > --- UTILITY (3) ------ Disposable Heat Sink > --- WEAPON (2) ------- Heavy Hammer > --- INVENTORY (5) ---- Structural Scanner Transport Network Coupler Light Armor Plating High-powered Tractor Beam Field Recycling Unit (0) Peak State ------------ > --- POWER ------------ Improved Ion Engine > --- PROPULSION ------- Light Treads Light Treads Light Treads > --- UTILITY ---------- Improved Heat Sink Large Storage Unit Utility Shielding > --- WEAPON ----------- Assault Cannon Assault Cannon > --- INVENTORY -------- Light Treads Disposable Heat Sink Disposable Heat Sink Compact Battery Medium Matter Pod Structural Scanner Light Armor Plating Light Armor Plating Light Armor Plating Light Armor Plating High-powered Tractor Beam Field Recycling Unit Assault Cannon Assault Cannon Heavy Hammer [Rating: 18] Favorites ----------- Power Ion Engine Engine Ion Engine Propulsion Light Treads Treads Light Treads Utility Large Storage Unit Device Improved Heat Sink Storage Large Storage Unit Protection Light Armor Plating Weapon Assault Cannon Ballistic Gun Assault Rifle Ballistic Cannon Assault Cannon Impact Weapon Heavy Hammer Build | -11 -10 -10 -9 -9 ------- Run | Yrd Mat Min Mat Min Slots Evolved 2 | . . . 2 . Power . | . . . . . Propulsion 1 | . . . 1 . Utility 1 | . . . 1 . Weapon . | . . . . . Parts Attached 65 | 6 7 2 34 16 Power 9 | 1 . 1 5 2 Engine 9 | 1 . 1 5 2 Core . | . . . . . Reactor . | . . . . . Propulsion 18 | 2 2 . 13 1 Treads 18 | 2 2 . 13 1 Leg . | . . . . . Wheel . | . . . . . Hover . | . . . . . Flight . | . . . . . Utility 25 | 1 2 1 9 12 Device 12 | . . . 3 9 Storage 2 | 1 . 1 . . Processor . | . . . . . Hackware . | . . . . . Protection 11 | . 2 . 6 3 Artifact . | . . . . . Weapon 13 | 2 3 . 7 1 Energy Gun . | . . . . . Energy Cannon . | . . . . . Ballistic Gun 5 | 2 3 . . . Ballistic Cannon 6 | . . . 6 . Launcher . | . . . . . Special Weapon . | . . . . . Impact Weapon 2 | . . . 1 1 Slashing Weapon . | . . . . . Piercing Weapon . | . . . . . Special Melee Weapon . | . . . . . Unidentified Prototypes . | . . . . . Parts Lost 15 | . . . 5 10 Power 3 | . . . 1 2 Propulsion 3 | . . . . 3 Utility 5 | . . . 2 3 Weapon 4 | . . . 2 2 Highest Loss Streak 9 | . . . 1 9 To Critical Strikes . | . . . . . Average Slot Usage (%) 96 | . 99 100 94 96 Engine 10 | . 14 14 9 10 Treads 31 | . 28 28 32 31 Device 8 | . . . 6 18 Storage 11 | . 14 14 11 10 Protection 11 | . 13 14 14 2 Ballistic Gun 6 | . 28 28 . . Ballistic Cannon 14 | . . . 17 21 Naked Turns . | . . . . . Heaviest Build 46 | 12 17 34 41 46 Greatest Support 60 | 40 40 40 60 60 Greatest Overweight (x) 3 | . . . 1 3 Average Overweight (x) . | . . . . . Largest Inventory Capacity 15 | 8 8 15 15 15 Average Capacity 12 | 7 8 11 15 14 Most Carried 15 | 5 8 11 15 13 Average Carried 10 | 4 7 8 13 11 Final Capacity 15 | 8 8 15 15 5 Final Carried 12 | 5 8 11 12 5 Class Distribution -------------------- 85% | Mutant 14% | Scavenger-Mutant Dominant Class ---------------- Mutant | -10/Materials Mutant | -10/Mines Mutant | -9/Materials Scavenger-Mutant | -9/Mines Resources | -11 -10 -10 -9 -9 ----------- Run | Yrd Mat Min Mat Min Matter Collected 2407 | 464 256 209 1031 447 Remotely 466 | . . . 175 291 Salvage Created 2247 | 357 386 178 964 362 Parts 146 | 37 32 6 50 21 Haulers Intercepted 5 | . 1 . 4 . Recyclers Shooed 1 | . 1 . . . Parts Field Recycled 18 | . . . . 18 Retrieved Matter 77 | . . . . 77 Parts Self-Destructed . | . . . . . Prevented . | . . . . . Kills | -11 -10 -10 -9 -9 ------- Run | Yrd Mat Min Mat Min Combat Hostiles Destroyed 47 | . 9 2 24 12 Guns 10 | . 8 2 . . Cannons 36 | . . . 24 12 AOE 1 | . 1 . . . Classes Destroyed 14 | 3 6 . 3 2 Worker 6 | 4 . . . 2 Builder 7 | . 1 1 . 5 Tunneler 11 | 9 . 1 . 1 Hauler 5 | . 1 . 4 . Recycler 3 | 1 . 1 1 . Mechanic 1 | . 1 . . . Operator 2 | . 1 . 1 . Watcher 4 | . . . 4 . Swarmer 7 | . 3 . 4 . Grunt 29 | . 6 2 14 7 Brawler 1 | . . . . 1 Duelist 1 | . . . 1 . Sentry 5 | . . . 5 . Assembled 4 | . . . . 4 Best Kill Streak 6 | 5 3 2 6 6 Combat Bots Only 6 | . 3 2 5 6 Max Kills in Single Turn 2 | 1 1 1 1 2 Gunslinging . | . . . . . Exploded 1 | . 1 . . . Melee . | . . . . . Uniques/NPCs Destroyed . | . . . . . Combat | -11 -10 -10 -9 -9 -------- Run | Yrd Mat Min Mat Min Hostile Shots Fired 315 | . 43 8 124 140 Missed 79 | . 10 1 40 28 Damage Taken 3184 | . 331 103 1052 1698 Core 431 | . 14 11 45 361 Absorbed by Shields . | . . . . . Redirected to Shielding 3 | . . . 3 . Core Remaining (%) 95 | 100 . 90 . . Volleys Fired 220 | 34 37 10 96 43 Largest 2 | 2 2 2 2 2 Hottest 88 | 40 46 46 88 88 Shots Fired 414 | 68 74 20 170 82 Gun 162 | 68 74 20 . . Cannon 252 | . . . 170 82 Launcher . | . . . . . Special . | . . . . . Kinetic 414 | 68 74 20 170 82 Thermal . | . . . . . Explosive . | . . . . . Electromagnetic . | . . . . . Robot Hit Streak 12 | 10 8 10 9 12 Robot Miss Streak 9 | 5 6 3 9 5 Penetration Max . | . . . . . Secondary Targets 2 | . 1 1 . . Max Gunslinging Chain 1 | . 1 1 . . Shots Hit Robots 231 | 37 46 15 87 46 Core Hits 104 | 15 24 9 35 21 Critical Kills . | . . . . . Critical Parts Destroyed . | . . . . . Critical Strikes 4 | . . . 4 . Blast 4 | . . . 4 . Melee Attacks 7 | . . . 3 4 Impact 7 | . . . 3 4 Slashing . | . . . . . Piercing . | . . . . . Sneak Attacks 3 | . . . 3 . Combat Hostiles . | . . . . . Follow-up Attacks . | . . . . . Damage Inflicted 5242 | 476 743 275 2418 1330 Guns 1396 | 476 645 275 . . Cannons 3508 | . . . 2206 1302 Explosions 98 | . 98 . . . Melee 240 | . . . 212 28 Ramming . | . . . . . Kinetic 4904 | 476 645 275 2206 1302 Thermal 98 | . 98 . . . Explosive . | . . . . . Electromagnetic . | . . . . . Impact 240 | . . . 212 28 Slashing . | . . . . . Piercing . | . . . . . Highest Corruption 1 | . . . . 1 Average Corruption 1 | . . . . 1 Corruption Purged . | . . . . . Corruption Blocked . | . . . . . Effects 4 | . . . . 4 Matter Fused 3 | . . . . 3 Energy Discharges 1 | . . . . 1 Overload Shots . | . . . . . Overflow Damage 133 | . . . 100 33 Projectiles 50 | . . . 17 33 Explosions . | . . . . . Melee 83 | . . . 83 . Knockbacks 34 | . . . 16 18 Impact . | . . . . . Kinetic 31 | . . . 15 16 Secondary 3 | . . . 1 2 Self-Inflicted Damage . | . . . . . Shots . | . . . . . Rammed . | . . . . . Targets Rammed . | . . . . . Kicked . | . . . . . Crushed . | . . . . . Highest Temperature 436 | . 24 41 396 436 Average Temperature 121 | . 8 30 136 139 Received Heat Transfer 1386 | . 108 57 405 816 Siege Activations . | . . . . . Robots Corrupted . | . . . . . Combat Hostiles . | . . . . . Parts Fried 1 | . . . 1 . Impact Corruptions 1 | . . . 1 . Robots Melted . | . . . . . Combat Hostiles . | . . . . . Parts Melted . | . . . . . Heat Transferred 50 | . 50 . . . Parts Sabotaged . | . . . . . Parts Stolen . | . . . . . Parts Stripped . | . . . . . Power Chain Reactions . | . . . . . Alert | -11 -10 -10 -9 -9 ------- Run | Yrd Mat Min Mat Min Peak Influence 445 | 65 329 129 445 360 Initial 173 | . 3 49 50 173 Average 195 | 19 157 115 254 251 Maximum Alert Level 2 | . 1 . 2 1 Low Security (%) 51 | 100 55 100 34 32 Level 1 42 | . 44 . 51 67 Level 2 5 | . . . 13 . Level 3 . | . . . . . Level 4 . | . . . . . Level 5 . | . . . . . High Security . | . . . . . Max Security . | . . . . . Squads Dispatched 6 | . 3 . 2 1 Investigation 2 | . 1 . 1 . Extermination . | . . . . . Reinforcement 4 | . 2 . 1 1 Assault . | . . . . . Garrison . | . . . . . Intercept . | . . . . . Searches Triggered . | . . . . . Construction Impeded 1 | . . . . 1 Haulers Reinforced . | . . . . . Active Scanning Responses . | . . . . . Cargo Convoy Interrupts . | . . . . . Stealth | -11 -10 -10 -9 -9 --------- Run | Yrd Mat Min Mat Min Distress Signals 4 | . 1 . 3 . Communications Jammed . | . . . . . Distress Signals . | . . . . . Times Spotted 85 | . 17 2 38 28 Peak Tracking Total 11 | . 4 1 5 11 Tactical Retreats 5 | . . . 2 3 Traps | -11 -10 -10 -9 -9 ------- Run | Yrd Mat Min Mat Min Traps Triggered 5 | . . . 5 . Indirectly . | . . . . . Trap Hack Attempts . | . . . . . Triggered . | . . . . . Disarmed . | . . . . . Reprogrammed . | . . . . . Reused . | . . . . . Traps Extracted . | . . . . . Installed . | . . . . . Triggered 1 | . . . . 1 Machines | -11 -10 -10 -9 -9 ---------- Run | Yrd Mat Min Mat Min Machines Disabled 4 | . 2 . 1 1 Max in Single Turn 2 | . 2 . 1 1 Machines Repaired . | . . . . . Machines Dismantled . | . . . . . Machines Sabotaged . | . . . . . Overloaded Fab Kills . | . . . . . Hacking | -11 -10 -10 -9 -9 --------- Run | Yrd Mat Min Mat Min Machines Accessed 5 | . 2 . 3 . Terminals 5 | . 2 . 3 . Fabricators . | . . . . . Repair Stations . | . . . . . Recycling Units . | . . . . . Scanalyzers . | . . . . . Garrison Access . | . . . . . Total Hacks 16 | . 8 . 8 . Successful 7 | . 4 . 3 . Failed 9 | . 4 . 5 . Catastrophic 2 | . 1 . 1 . Database Lockouts . | . . . . . Manual 13 | . 8 . 5 . Terminals 16 | . 8 . 8 . Fabricators . | . . . . . Repair Stations . | . . . . . Recycling Units . | . . . . . Scanalyzers . | . . . . . Garrison Access . | . . . . . Terminal Hacks 3 | . 2 . 1 . Robot Analysis 1 | . 1 . . . Prototype ID Bank 1 | . . . 1 . Terminal Index 1 | . 1 . . . Fabricator Hacks . | . . . . . Repair Station Hacks . | . . . . . Recycling Unit Hacks . | . . . . . Scanalyzer . | . . . . . Garrison Access Hacks . | . . . . . Unauthorized Hacks 4 | . 2 . 2 . Terminals 4 | . 2 . 2 . Botnet 4 | . 2 . 2 . Fabricators . | . . . . . Repair Stations . | . . . . . Recycling Units . | . . . . . Scanalyzers . | . . . . . Garrison Access . | . . . . . Data Cores Recovered 1 | . . . 1 . Used . | . . . . . Hacking Detections 5 | . 2 . 3 . Full Trace Events 2 | . 1 . 1 . Feedback Events . | . . . . . Feedback Blocked . | . . . . . Robot Schematics Acquired . | . . . . . Robots Built . | . . . . . Authchips . | . . . . . Time . | . . . . . Total Robot Build Rating . | . . . . . Part Schematics Acquired . | . . . . . Parts Built . | . . . . . Authchips . | . . . . . Time . | . . . . . Total Part Build Rating . | . . . . . Parts Repaired . | . . . . . Time . | . . . . . Parts Recycled . | . . . . . Recycled Matter . | . . . . . Retrieved Matter . | . . . . . Retrieved Components . | . . . . . Parts Scanalyzed . | . . . . . Part Schematics Acquired . | . . . . . Parts Damaged . | . . . . . Bothacking | -11 -10 -10 -9 -9 ------------ Run | Yrd Mat Min Mat Min Used RIF Installer . | . . . . . Robots Hacked . | . . . . . Non-combat . | . . . . . Combat . | . . . . . Robot Hacks Applied . | . . . . . Relay Couplers Released . | . . . . . Fabnet Peak Effective % . | . . . . . Robots Rewired . | . . . . . Allies Hacked . | . . . . . Hacks Repelled . | . . . . . Allies | -11 -10 -10 -9 -9 -------- Run | Yrd Mat Min Mat Min Total Allies . | . . . . . Largest Group . | . . . . . Highest-Rated Group . | . . . . . Highest-Rated Ally . | . . . . . Total Orders . | . . . . . Ally Attacks . | . . . . . Total Damage . | . . . . . Kills . | . . . . . Allies Corrupted . | . . . . . Allies Melted . | . . . . . Intel | -11 -10 -10 -9 -9 ------- Run | Yrd Mat Min Mat Min Robot Analysis Total 1 | . 1 . . . Derelict Logs Recovered 2 | . . 1 . 1 Drone Launches . | . . . . . Drone Recoveries . | . . . . . Exploration | -11 -10 -10 -9 -9 ------------- Run | Yrd Mat Min Mat Min Turns Passed 3678 | 562 425 298 1593 800 Spaces Moved 1653 | 278 174 163 723 315 Core 13 | 3 . . . 10 Treads 1640 | 275 174 163 723 305 Legs . | . . . . . Wheels . | . . . . . Hover . | . . . . . Flight . | . . . . . Fastest Speed 50 | 50 160 160 160 100 Average Speed 160 | 158 160 160 160 161 Slowest Speed 320 | 160 160 160 240 320 Overloaded Moves . | . . . . . Propulsion Burnouts . | . . . . . Robots Hopped . | . . . . . Cave-ins Triggered . | . . . . . Exploration Rate (%) 37 | 14 28 40 56 47 Regions Visited 4 Branch Regions 2 Pre-discovered Areas 1 | . . . . 1 Known Exits Taken 1 | . . . 1 . Unknown Exits Taken 3 | 1 1 1 . . Scrap Searched 2 | . . 1 . 1 Spaces Dug . | . . . . . Terrain Destroyed 67 | . 9 . 42 16 Melee . | . . . . . Projectile 58 | . . . 42 16 AOE 9 | . 9 . . . Terrain Rammed . | . . . . . Walls Destroyed . | . . . . . Machines Disabled . | . . . . . Actions | -11 -10 -10 -9 -9 --------- Run | Yrd Mat Min Mat Min Total 2260 | 328 255 181 981 515 Wait 247 | 5 12 2 96 132 Move 1649 | 277 173 162 722 315 Hop . | . . . . . Pick Up 33 | 6 12 3 12 . Fast Attach 21 | 5 1 . 15 . Attach 15 | 1 . . 7 7 Detach 6 | . . . 3 3 Swap 29 | . 6 2 12 9 Drop 33 | . 14 2 15 2 Fire 220 | 34 37 10 96 43 Melee 7 | . . . 3 4 Ram . | . . . . . Kick . | . . . . . Crush . | . . . . . Escape Stasis . | . . . . . Rewire . | . . . . . Trap . | . . . . . Miscellaneous . | . . . . . Route ------- -11/Scrapyard -10/Materials -10/Mines -9/Materials (discovered 4 exits: [*Mat x2] / *Min x2) -9/Mines (discovered 1 exit: [*Mat]) History --------- Turn | Location | Event 20 | -11/Scrapyard | Discovered new exit (range 16) 563 | -11/Scrapyard | Entered Materials 564 | -10/Materials | Build established: Mutant 791 | -10/Materials | Discovered new exit (range 9) 988 | -10/Materials | Entered Mines 1150 | -10/Mines | Learned location of 1 exit from Materials 1282 | -10/Mines | Discovered new exit (range 2) 1286 | -10/Mines | Entered Materials 1286 | -9/Materials | Evolved 2 slots: Propulsion x1, Utility x1 1287 | -9/Materials | Identified exit to Mines 1547 | -9/Materials | Discovered new exit (range 11) 2018 | -9/Materials | Discovered exit to Mines (range 8) 2331 | -9/Materials | Discovered new exit (range 15) 2879 | -9/Materials | Entered Mines 2886 | -9/Mines | Met a Derelict bent on vengeance 2907 | -9/Mines | Discovered new exit (range 5) 3146 | -9/Mines | Build established: Scavenger-Mutant 3437 | -9/Mines | Learned location of Storage (-7) 3587 | -9/Mines | Assembled infested the area 3640 | -9/Mines | Core integrity fell below 50% 3670 | -9/Mines | Core integrity fell below 20% 3679 | -9/Mines | Destroyed by as-15374 with Assembled Heavy Rifle Last Messages --------------- 03621_ Lgt. Treads destroyed. 03621_ Critical hit (Burn: +80). 03624_ System corrupted: Matter fused (-9). 03625_ Lgt. Treads destroyed. 03626_ Imp. Ion Engine destroyed. 03632_ Critical hit (Burn: +80). 03634_ as-67820 knocked back. 03634_ as-54513 knocked back. 03634_ Assault Cannon destroyed. 03635_ as-54513 suffers critical hit (Destroy). 03636_ Lgt. Treads destroyed. 03637_ as-15374 knocked back. 03639_ as-69095 destroyed. 03643_ as-54513 destroyed. 03643_ Hvy. Armor Plating destroyed. 03650_ Dropped Lrg. Storage Unit. 03650_ Assault Cannon destroyed. 03669_ Lgt. Armor Plating destroyed. 03673_ Ion Engine destroyed. 03676_ as-88942 destroyed. Map ----- +----------------------------------------------------+ | | | ?????????????????????????????????????????????????? | | ?????????????????????????????????????????????????? | | ?????????????????????????????????????????????????? | | ?????????????????????????????????????????????????? | | ?????????????????????????????????????????????????? | | ?????????????????????????????????????????????????? | | ?????????????????????????????????????????????????? | | ?????????????????????????????????????????????????? | | ?????????????????????????????????????????????????? | | ?????????????????????????????????????????????????? | | ?????????????????????????????????????????????????? | | ?????????????????????????????????????????????????? | | ?????????????????##??????????????????????????????? | | ?????????????????# ??????????????????????????????? | | ?????????????????# ??????????????????????????????? | | ?????????????????# ??????????????????????????????? | | ?????????????????# #?????????????????????????????? | | ?????????????????# #?###### #????????????????????? | | ?????????????????# #?# #????????????????????? | | ????????????????## #?# ######????????????????????? | | ????????????????#; "## #?????????????????????????? | | ?????????????????# "%#?????????????????????????? | | ????????????????## ##????????????????????????? | | ??????????????### %%%######################???? | | ??????????????# a@! #???? | | ??????????????## ## a%a################### #???? | | ???????????????# #?## ##??????????????????# #???? | | ???????????????# ???# ##???????????????????# #???? | | ???????????????#????# #????????????????????# #???? | | ????????????????????# #????????????????????# #???? | | ???????????????????? #??????????????????### #???? | | ????????????????????###?????????????????## #???? | | ????????????????????????????????????????# ##??? | | ?????????????# ############?????###### #??? | | ????????????# #?????# #??? | | ????????????# #?????# ### #??? | | ??????????? ######## #?????# #?## #?? | | ????????????##????????????# #?????# #??## #?? | | ??????????????????????????# ####### #???## ##?? | | ??????????????????????????# ## #????# ###??? | | ??????????????????????????# ## ######????# #????? | | ???????? ????????????????# #?????????# #????? | | ???????? ????????????????# ####?????????# #????? | | ??????? #????????????????# #????????????# ????? | | ??????? #????????????????# #????????????? ????? | | ???????$ #?????? ?????????# #????????????? ????? | | ??????? ##???? ????????# #????????????? #????? | | ??????? #### ????????## ######??#?????#?????? | | ??????# ??????????# #? ????????????? | +----------------------------------------------------+ Best States ------------- Heat Dissipation 42 Coolant Potential 50 Energy Generation 12 Energy Capacity 265 Matter Stores 300 Matter Capacity 300 Sight Range 16 Terrain Scan Density 10 Armor Coverage 600 Utility Shielding 33 Evasion (%) 40 Recoil Reduction 3 Item Schematics ----------------- None Robot Schematics ------------------ None Fabricated ------------ Nothing Alien Tech Used ----------------- None Achievements -------------- None Challenges ------------ None Game ------ Seed AuthchipSpikedCapacitor Manual? 0 Play Time 00:23:21 Cumulative 81.9 hours Start 2024.06.13 @ 14:27:41 End 2024.06.13 @ 14:49:02 Sessions 1 Manual Loads 0 Difficulty Rogue Special Mode None Game No. 92 Rogue 86 Adventurer 6 Explorer 0 Win Type - Total 0 Types 0/0/0/0/0/0/0/0/0 Lore% 35 Gallery% 50 Achievement% 37 Wizard Run 0 Options --------- Layout 0 ASCII 0 Keyboard 1 Movement Numpad Keybinds 0 Fullscreen 0 Font 14/Smallcaps Map View 76x50 Zoom Use 0% Tactical HUD 1 Map Filters NONE Filters NONE Steam 1 RUN: 1b7c787c-98ba-41a9-9632-ca4975298ef3